Cogmind - Beta 16.1 @@@ ROGUE MODE // 2026.04.20 @ 02:30:19 Player: PopcornMaze Result: Destroyed by S-10 Pest with Light Assault Rifle Performance ------------- Evolutions (0) 0 Regions Visited (3) 600 Robots Destroyed (28) 140 Value Destroyed (595) 595 Prototype IDs (0) 0 Alien Tech Used (0) 0 Bonus (0) 0 TOTAL SCORE: 1335 Bonus ------- None Cogmind --------- Core Integrity 0/250 Matter 298/300 Energy 138/140 System Corruption 0% Temperature Cool (0) Movement Rolling (140) Ox4 Location -10/Subcaves Parts ------- > --- POWER (1) -------- Light Deuterium Engine > --- PROPULSION (2) --- Wheel Wheel > --- UTILITY (2) ------ Huge Storage Unit Targeting Computer > --- WEAPON (2) ------- Battle Cannon Grenade Launcher > --- INVENTORY (25) --- Advanced Treads Carbon-fiber Leg Compact Wheel Subdweller Monowheel Small Storage Unit Advanced Weight Redist. System Improved Sensor Array Transport Network Coupler Targeting Computer Particle Charger Power Shielding Propulsion Shielding Improved Propulsion Shielding Utility Shielding Weapon Shielding Weapon Shielding Weapon Shielding Light Armor Plating Insulated Plating Small Laser Small Laser Small Laser Small Laser Beam Cannon Assault Rifle Peak State ------------ > --- POWER ------------ Light Deuterium Engine > --- PROPULSION ------- Wheel Wheel > --- UTILITY ---------- Huge Storage Unit Targeting Computer > --- WEAPON ----------- Small Laser Beam Rifle > --- INVENTORY -------- Advanced Treads Carbon-fiber Leg Wheel Compact Wheel Small Storage Unit Advanced Weight Redist. System Improved Sensor Array Transport Network Coupler Targeting Computer Particle Charger Improved Propulsion Shielding Utility Shielding Weapon Shielding Weapon Shielding Insulated Plating Small Laser Small Laser Small Laser Small Laser Small Laser Small Laser Small Laser Beam Rifle Beam Cannon Assault Rifle [Rating: 14] Favorites ----------- Power Light Deuterium Engine Engine Light Deuterium Engine Propulsion Wheel Wheel Wheel Utility Targeting Computer Storage Huge Storage Unit Processor Targeting Computer Weapon Small Laser Energy Gun Small Laser Energy Cannon Beam Cannon Ballistic Cannon Battle Cannon Launcher Grenade Launcher Build | -11 -10 -10 -10 ------- Run | Yrd Mat Min Sub Slots Evolved . | . . . . Power . | . . . . Propulsion . | . . . . Utility . | . . . . Weapon . | . . . . Parts Attached 24 | 8 7 4 5 Power 4 | 2 1 1 . Engine 4 | 2 1 1 . Core . | . . . . Reactor . | . . . . Propulsion 6 | 2 2 . 2 Treads . | . . . . Leg . | . . . . Wheel 6 | 2 2 . 2 Hover . | . . . . Flight . | . . . . Utility 3 | 1 2 . . Device . | . . . . Storage 2 | 1 1 . . Processor 1 | . 1 . . Hackware . | . . . . Protection . | . . . . Artifact . | . . . . Weapon 11 | 3 2 3 3 Energy Gun 8 | 3 2 3 . Energy Cannon 1 | . . . 1 Ballistic Gun . | . . . . Ballistic Cannon 1 | . . . 1 Launcher 1 | . . . 1 Special Weapon . | . . . . Impact Weapon . | . . . . Slashing Weapon . | . . . . Piercing Weapon . | . . . . Special Melee Weapon . | . . . . Unidentified Prototypes . | . . . . Parts Lost 5 | . 1 . 4 Power . | . . . . Propulsion 3 | . 1 . 2 Utility . | . . . . Weapon 2 | . . . 2 Highest Loss Streak 2 | . 1 . 2 To Critical Strikes . | . . . . Average Backups 20 | 1 11 23 24 Power . | . 1 . . Propulsion 2 | . . 3 3 Utility 10 | . 2 11 15 Weapon 6 | . 6 7 5 Tool/Special . | . . . . Unused Backups 24 | . . 3 21 Power . | . . . . Propulsion 3 | . . . 3 Utility 14 | . . . 14 Weapon 7 | . . 3 4 Tool/Special . | . . . . Average Slot Usage (%) 98 | . 97 100 98 Engine 14 | . 14 14 14 Wheel 27 | . 27 28 27 Storage 14 | . 14 14 14 Processor 13 | . 11 14 14 Energy Gun 18 | . 27 28 7 Energy Cannon 1 | . . . 3 Ballistic Cannon 3 | . . . 8 Launcher 3 | . . . 6 Peak Build Rating 14 | 6 8 14 14 Average Rating 11 | 4 7 12 13 On Entrance 7 | . 6 8 14 Avg Prop Armor Cover (%) . | . . . . Naked Turns . | . . . . Heaviest Build 91 | 13 87 89 91 Greatest Support 26 | 26 26 20 20 Greatest Overweight (x) 8 | 3 5 4 8 Average Overweight (x) 3 | . 2 4 4 Largest Inventory Capacity 25 | 8 25 25 25 Average Capacity 24 | 7 22 25 25 Most Carried 25 | 2 17 25 25 Average Carried 20 | 1 11 23 24 Final Capacity 25 | 8 25 25 25 Final Carried 25 | 2 17 25 25 Class Distribution -------------------- 97% | Mutant Dominant Class ---------------- Mutant | -10/Materials Mutant | -10/Mines Mutant | -10/Subcaves Resources | -11 -10 -10 -10 ----------- Run | Yrd Mat Min Sub Matter Collected 609 | 232 133 40 204 Remotely . | . . . . Salvage Created 856 | . 499 84 273 Parts 58 | . 33 4 21 Haulers Intercepted 1 | . 1 . . Recyclers Shooed . | . . . . Parts Field Recycled . | . . . . Retrieved Matter . | . . . . Parts Self-Destructed 7 | . . . 7 Prevented . | . . . . Parts Restored . | . . . . Kills | -11 -10 -10 -10 ------- Run | Yrd Mat Min Sub Combat Hostiles Destroyed 24 | . 14 3 7 Guns 19 | . 14 3 2 Cannons 3 | . . . 3 AOE 2 | . . . 2 Classes Destroyed 7 | . 5 . 2 Worker 1 | . 1 . . Builder 2 | . 1 1 . Hauler 1 | . 1 . . Swarmer 12 | . 9 3 . Grunt 6 | . 5 . 1 Sentry 1 | . . . 1 Subdweller 5 | . . . 5 Best Kill Streak 4 | . 4 3 2 Combat Bots Only 4 | . 4 3 2 Max Kills in Single Turn 2 | . 2 1 1 Gunslinging . | . . . . Exploded 1 | . . . 1 Melee . | . . . . Uniques/NPCs Destroyed . | . . . . Combat | -11 -10 -10 -10 -------- Run | Yrd Mat Min Sub Hostile Shots Fired 96 | . 54 12 30 Missed 17 | . 9 2 6 Hits 79 | . 45 10 24 Projectile 79 | . 45 10 24 Critical Strikes 2 | . . . 2 Damage Taken 1025 | . 436 96 493 Core 250 | . 85 39 126 Absorbed by Shields . | . . . . Core Remaining (%) 100 | 100 . . . Volleys Fired 103 | . 48 7 48 Largest 2 | . 2 2 2 Hottest 116 | . 80 96 116 Shots Fired 181 | . 96 14 71 Gun 139 | . 96 14 29 Cannon 33 | . . . 33 Launcher 9 | . . . 9 Special . | . . . . Kinetic 3 | . . . 3 Thermal 169 | . 96 14 59 Explosive 9 | . . . 9 Electromagnetic . | . . . . Robot Hit Streak 13 | . 10 5 13 Robot Miss Streak 6 | . 6 2 1 Penetration Max . | . . . . Secondary Targets 1 | . 1 . . Max Gunslinging Chain 1 | . 1 . . Shots Hit Robots 89 | . 49 9 31 Core Hits 45 | . 27 5 13 Critical Kills . | . . . . Critical Parts Destroyed . | . . . . Critical Strikes 2 | . . 1 1 Burn 2 | . . 1 1 Melee Attacks . | . . . . Impact . | . . . . Slashing . | . . . . Piercing . | . . . . Sneak Attacks . | . . . . Combat Hostiles . | . . . . Follow-up Attacks . | . . . . Damage Inflicted 1201 | . 541 129 531 Guns 769 | . 541 112 116 Cannons 145 | . . . 145 Explosions 270 | . . . 270 Melee . | . . . . Ramming 17 | . . 17 . Kinetic 40 | . . . 40 Thermal 874 | . 541 112 221 Explosive 270 | . . . 270 Electromagnetic . | . . . . Impact . | . . . . Slashing . | . . . . Piercing . | . . . . Highest Corruption . | . . . . Average Corruption . | . . . . Corruption Purged . | . . . . Corruption Blocked . | . . . . Overload Shots . | . . . . Overflow Damage . | . . . . Projectiles . | . . . . Explosions . | . . . . Melee . | . . . . Knockbacks . | . . . . Impact . | . . . . Kinetic . | . . . . Secondary . | . . . . Self-Inflicted Damage 13 | . . 8 5 Shots 1 | . . . 1 Rammed 1 | . . 1 . Targets Rammed 1 | . . 1 . Kicked . | . . . . Crushed . | . . . . Highest Temperature 329 | . 162 195 329 Average Temperature 66 | . 56 81 105 Received Heat Transfer 567 | . 120 18 429 Effects 2 | . . . 2 Shutdowns 1 | . . . 1 Matter Decay 1 | . . . 1 Siege Activations . | . . . . Martial Activations . | . . . . Shielding Activations . | . . . . Robots Disrupted . | . . . . Combat Hostiles . | . . . . Robots Corrupted . | . . . . Combat Hostiles . | . . . . Parts Fried . | . . . . Impact Corruptions . | . . . . Robots Melted . | . . . . Combat Hostiles . | . . . . Parts Melted 4 | . 3 1 . Heat Transferred 2164 | . 1225 347 592 Parts Sabotaged . | . . . . Parts Stolen . | . . . . Parts Stripped . | . . . . Power Chain Reactions . | . . . . Alert | -11 -10 -10 -10 ------- Run | Yrd Mat Min Sub Maximum Alert Level . | . . . . Low Security (%) 100 | 100 100 100 . Level 1 . | . . . . Level 2 . | . . . . Level 3 . | . . . . Level 4 . | . . . . Level 5 . | . . . . High Security . | . . . . Max Security . | . . . . Peak Influence 132 | . 132 70 . Initial 36 | . . 36 . Average 27 | . 49 6 . Influence Increases 517 | . 402 75 40 Destroy 0b10 Robot/C 380 | . 280 60 40 Destroy 0b10 Robot/NC 20 | . 15 5 . Destroy Leader 72 | . 62 10 . Lose Combat Pursuer 45 | . 45 . . Influence Decreases 517 | . 308 127 82 Entered New Map 80 | . . 58 22 Time Decay 435 | . 308 69 58 Lost Part 2 | . . . 2 Squads Dispatched 3 | . 2 1 . Investigation 2 | . 1 1 . Extermination . | . . . . Reinforcement 1 | . 1 . . Assault . | . . . . Garrison . | . . . . Intercept . | . . . . Searches Triggered . | . . . . Construction Impeded . | . . . . Haulers Reinforced . | . . . . Active Scanning Responses . | . . . . Cargo Convoy Interrupts . | . . . . Stealth | -11 -10 -10 -10 --------- Run | Yrd Mat Min Sub Distress Signals 4 | . 4 . . Communications Jammed . | . . . . Distress Signals . | . . . . Times Spotted 40 | . 26 4 10 Peak Tracking Total 5 | . 5 3 2 Tactical Retreats 2 | . 2 . . Traps | -11 -10 -10 -10 ------- Run | Yrd Mat Min Sub Traps Triggered 1 | . 1 . . Indirectly . | . . . . Trap Hack Attempts . | . . . . Triggered . | . . . . Disarmed 4 | . 4 . . Reprogrammed . | . . . . Reused . | . . . . Traps Extracted . | . . . . Installed . | . . . . Triggered . | . . . . Machines | -11 -10 -10 -10 ---------- Run | Yrd Mat Min Sub Machines Disabled . | . . . . Max in Single Turn . | . . . . Machines Repaired . | . . . . Machines Dismantled . | . . . . Machines Sabotaged . | . . . . Overloaded Fab Kills . | . . . . Hacking | -11 -10 -10 -10 --------- Run | Yrd Mat Min Sub Machines Accessed 7 | . 5 2 . Terminals 4 | . 3 1 . Fabricators . | . . . . Repair Stations . | . . . . Recycling Units 2 | . 2 . . Scanalyzers . | . . . . Garrison Access . | . . . . Total Hacks 16 | . 12 4 . Successful 5 | . 3 2 . Failed 11 | . 9 2 . Catastrophic 1 | . 1 . . Database Lockouts . | . . . . Manual 3 | . 2 1 . Terminals 11 | . 8 3 . Fabricators . | . . . . Repair Stations . | . . . . Recycling Units 4 | . 4 . . Scanalyzers . | . . . . Garrison Access . | . . . . Terminal Hacks 3 | . 1 2 . Open Door 1 | . . 1 . Disarm Traps 1 | . 1 . . Zone Layout 1 | . . 1 . Fabricator Hacks . | . . . . Repair Station Hacks . | . . . . Recycling Unit Hacks 2 | . 2 . . Retrieve Components 2 | . 2 . . Scanalyzer . | . . . . Garrison Access Hacks . | . . . . Unauthorized Hacks . | . . . . Terminals . | . . . . Fabricators . | . . . . Repair Stations . | . . . . Recycling Units . | . . . . Scanalyzers . | . . . . Garrison Access . | . . . . Data Cores Recovered . | . . . . Used . | . . . . Hacking Detections 5 | . 4 1 . Full Trace Events . | . . . . Feedback Events . | . . . . Feedback Blocked . | . . . . Robot Schematics Acquired . | . . . . Robots Built . | . . . . Authchips . | . . . . Time . | . . . . Total Robot Build Rating . | . . . . Part Schematics Acquired . | . . . . Parts Built . | . . . . Authchips . | . . . . Time . | . . . . Total Part Build Rating . | . . . . Part Studies Acquired . | . . . . Parts Repaired . | . . . . Time . | . . . . Parts Recycled . | . . . . Recycled Matter . | . . . . Retrieved Matter . | . . . . Retrieved Components 2 | . 2 . . Parts Scanalyzed . | . . . . Part Schematics Acquired . | . . . . Parts Damaged . | . . . . Bothacking | -11 -10 -10 -10 ------------ Run | Yrd Mat Min Sub Used RIF Installer . | . . . . Robots Hacked . | . . . . Non-combat . | . . . . Combat . | . . . . Robot Hacks Applied . | . . . . Relay Couplers Released . | . . . . Fabnet Peak Effective % . | . . . . Robots Rewired . | . . . . Allies Hacked . | . . . . Hacks Repelled . | . . . . Allies | -11 -10 -10 -10 -------- Run | Yrd Mat Min Sub Total Allies . | . . . . Largest Group . | . . . . Highest-Rated Group . | . . . . Highest-Rated Ally . | . . . . Total Orders . | . . . . Ally Attacks . | . . . . Total Damage . | . . . . Kills . | . . . . Allies Corrupted . | . . . . Allies Melted . | . . . . Intel | -11 -10 -10 -10 ------- Run | Yrd Mat Min Sub Active Infowar (turns) . | . . . . Robot Analysis Total . | . . . . Derelict Logs Recovered 4 | . . 2 2 Drone Launches . | . . . . Drone Recoveries . | . . . . Exploration | -11 -10 -10 -10 ------------- Run | Yrd Mat Min Sub Turns Passed 3096 | 54 873 824 1345 Spaces Moved 1920 | 45 482 535 858 Core 10 | 10 . . . Treads . | . . . . Legs . | . . . . Wheels 1910 | 35 482 535 858 Hover . | . . . . Flight . | . . . . Fastest Speed 50 | 50 90 140 140 Average Speed 136 | 90 129 140 140 Slowest Speed 200 | 200 175 140 200 Overloaded Moves . | . . . . Propulsion Burnouts . | . . . . Robots Hopped . | . . . . Potential Cave-ins . | . . . . Cave-ins Triggered . | . . . . Exploration Rate (%) 54 | 3 75 89 51 Regions Visited 3 Branch Regions 2 Pre-discovered Areas 1 | . . 1 . Known Exits Taken . | . . . . Unknown Exits Taken 3 | 1 1 1 . Scrap Searched 5 | . . 1 4 Spaces Dug . | . . . . Terrain Destroyed 41 | . . . 41 Melee . | . . . . Projectile . | . . . . AOE 41 | . . . 41 Terrain Rammed . | . . . . Walls Destroyed . | . . . . Machines Disabled . | . . . . Actions | -11 -10 -10 -10 --------- Run | Yrd Mat Min Sub Total 2212 | 54 633 599 926 Wait 115 | . 75 31 9 Move 1917 | 44 481 534 858 Hop . | . . . . Pick Up 35 | 2 16 14 3 Fast Attach 10 | 6 3 . 1 Attach 7 | . 3 1 3 Detach . | . . . . Swap 12 | 2 3 3 4 Drop 12 | . 4 8 . Fire 103 | . 48 7 48 Melee . | . . . . Ram 1 | . . 1 . Kick . | . . . . Crush . | . . . . Escape Stasis . | . . . . Rewire . | . . . . Trap . | . . . . Miscellaneous . | . . . . Route ------- -11/Scrapyard -10/Materials (discovered 3 exits: [*Mat x2] / *Min) -10/Mines (discovered 3 exits: [*Mat x2] / [*Sub]) -10/Subcaves History --------- Turn | Location | Event 18 | -11/Scrapyard | Discovered new exit (range 16) 55 | -11/Scrapyard | Entered Materials 168 | -10/Materials | Discovered new exit (range 13) 309 | -10/Materials | Build established: Mutant 865 | -10/Materials | Discovered new exit (range 4) 874 | -10/Materials | Discovered new exit (range 15) 928 | -10/Materials | Entered Mines 932 | -10/Mines | Met a Derelict shopkeep closing up shop 1213 | -10/Mines | Learned location of Recycling (-9) 1215 | -10/Mines | Discovered new exit (range 5) 1310 | -10/Mines | Discovered new exit (range 13) 1372 | -10/Mines | Learned Materials terminal intel 1372 | -10/Mines | Joined a pair of Derelicts in attacking an 0b10 outpost 1725 | -10/Mines | Discovered new exit (range 6) 1752 | -10/Mines | Entered Subcaves 1753 | -10/Subcaves | Approached by a straggling Scientist 1804 | -10/Subcaves | Learned Materials emergency access door positions 1899 | -10/Subcaves | Shifting Twisted Machinery released Shrapnel Trap 2065 | -10/Subcaves | Core integrity fell below 50% 2162 | -10/Subcaves | Core integrity fell below 20% 2267 | -10/Subcaves | Disturbed a concealed Subdweller 2439 | -10/Subcaves | Shifting Twisted Machinery released Sub. Machine Gun 2968 | -10/Subcaves | A swath of the cavern ceiling suddenly collapsed 3097 | -10/Subcaves | Destroyed by S-10 Pest with Light Assault Rifle Last Messages --------------- 02291_ Acquired Grenade Launcher. 02295_ Acquired Sub. Monowheel. 02341_ Subatomizers dissect the Sub. Optics. Sub. Machine Gun falls loose from the Twisted Machinery. 02574_ BG-DPM(R) destroyed. 02587_ 4J-SNF(R) destroyed. 02592_ The unstable cave ceiling collapses. 02791_ Acquired 15 matter. 02829_ Acquired 12 matter. 02868_ Acquired 10 matter. A swath of the cavern ceiling suddenly collapses. 02976_ Searching scrap... 02976_ Found Battle Cannon. 02976_ Found Sub. Optics. 02976_ Found 47 Matter. 02977_ Acquired 47 matter. 03008_ QC-6QQ(u) builds Twisted Machinery. 03072_ Acquired 14 matter. Map ----- +----------------------------------------------------+ | # ##### ### #?????????????????????????????# | | ###???####?#######??????????????????????????????# | | ?????????????????????????????????????????????????# | | ?????????????????????????????????????????????????# | | ?????????????????????????????????????????????????? | | ??????????????????????????????????????????????#### | | ??????????????????????????????????????????????# | | ??????????????????????????????????????????????# | | ??????????????????????????????????????????????# | | ??????????????????????????????????????????????# | | ?????????????????????????????????????????????# ## | | ?????????????????????????????????????????????# ## | | ??????????????????????????? ?????????????????## ## | | ??????????????????????????? ??????????????????#### | | ??????????????????????????## ????????????????????# | | ??????????????????????????? ????????????????????# | | ???????????????????????????# ?????????????????#### | | ??????????????????????????## ##???????????????# ## | | ???????????? #???????????# #??????????????## | | ???????????? ####???????# ##??????####?### | | ????????????? #??????# ######## ### | | ??????????????? ######?# ## ## | | ????????????????? ### # | | ???????????????????# ### | | ??????????????????## # #?## | | ??????????????????# @ ## # ##?## | | ??????????????????# # ## #?## # | | ??????????????# %## ### ## | | ??????????????## ### %###### ###### | | ???????????????#### #??## # #?### #???# | | ??????????????????# ???# ## ### #???# | | ?????????????????# ????### # ##% ### ##### | | ????????????????s ???????####### ## | | ??????????????? ss??????????????## # | | ????????????? ????????????????## & | | ????????????? ??????????????????# ### | | ?????????????? ???????????????????###?## # | | ????????????????????????????????????????# # | | ????????????????????????????????????????## ### # | | ?????????????????????????????????????????####?#### | | ?????????????????????????????????????????????????? | | ?????????????????????????????????????????????????? | | ?????????????????????????????????????????????????? | | ?????????????????????????????????????????????????? | | ?????????????????????????????????????????????????? | | ?????????????????????????????????????????????????? | | ?????????????????????????????????????????????????? | | ?????????????????????????????????????????????????? | | ?????????????????????????????????????????????????? | | ?????????????????????????????????????????????????? | +----------------------------------------------------+ Best States ------------- Heat Dissipation 25 Energy Generation 14 Energy Capacity 250 Matter Stores 300 Matter Capacity 300 Sight Range 16 Terrain Scan Density 10 Evasion (%) 44 Targeting Accuracy 5 Item Schematics ----------------- None Robot Schematics ------------------ None Fabricated ------------ Nothing Repaired ---------- Nothing Studied --------- None Alien Tech Used ----------------- None Achievements -------------- None Challenges ------------ None Game ------ Seed MomentumChipFist Manual? 0 Play Time 00:23:16 Cumulative 14.3 hours Start 2026.04.20 @ 02:10:53 End 2026.04.20 @ 02:30:19 Sessions 1 Manual Loads 0 Difficulty Rogue Special Mode None Game No. 23 Rogue 23 Adventurer 0 Explorer 0 Win Type - Total 0 Types 0/0/0/0/0/0/0/0/0/0 Lore% 5 Gallery% 17 Achievement% 19 Wizard Run 0 Options --------- Layout 1 ASCII 0 Keyboard 0 Movement Numpad Keybinds 0 Fullscreen 1 Font 32/SmallcapsGlow Map View 50x35 Zoom Use 0% Tactical HUD 1 Map Filters NONE Filters NONE Steam 1 RUN: 44d3816f-5814-48bb-9ff7-a8ccc5f3b419